fUSD/lending_fUSD_20260213
["ID","MTS","AMOUNT","RATE_DAILY","PERIOD"]
[405291185,1770948643271,-459.69931234,0.00017799,2]
[405291186,1770948643280,-1130961.51449802,0.000178,2]
[405291187,1770948643429,-166488.86640689,0.000178,2]
[405291188,1770948643441,-202549.61909509,0.000178,2]
[405291189,1770948643451,-500.0,0.00017808,2]
[405291190,1770948643461,-800.0,0.00017808,2]
[405291191,1770948643471,-1071.0,0.00017809,2]
[405291192,1770948643481,-2000.0,0.00017816,2]
[405291193,1770948643490,-2000.0,0.00017816,2]
[405291194,1770948643501,-1503.05497251,0.00017816,2]
[405291195,1770948643511,-2004.24865563,0.00017816,2]
[405291196,1770948643520,-1205.1081519,0.00017816,2]
[405291197,1770948643530,-2000.0,0.00017816,2]
[405291198,1770948643539,-2008.47777759,0.00017816,2]
[405291199,1770948643549,-168.43455527,0.00017835,2]
[405291200,1770948643559,-213.89347624,0.00017835,2]
[405291201,1770948643569,-500.0,0.00017863,2]
[405291202,1770948643578,-1071.0,0.0001787,2]
[405291203,1770948643588,-1071.0,0.00017891,2]
[405291204,1770948643598,-168.0,0.00017895,2]
[405291205,1770948643608,-5843.0,0.00017898,2]
[405291206,1770948643618,-1000.0,0.000179,2]
[405291207,1770948643627,-599.6611,0.000179,2]
[405291208,1770948643637,-259.7041,0.000179,2]
[405291209,1770948643647,-1071.0,0.00017905,2]
[405291210,1770948643656,-500.0,0.00017918,2]
[405291211,1770948643665,-500.49095607,0.00017959,3]
[405291212,1770948643674,-500.0,0.00017972,2]
[405291213,1770948643684,-1199.66537221,0.00017982,2]
[405291214,1770948643694,-688.2,0.00017987,2]
[405291215,1770948643703,-26882.41714638,0.00017992,2]
[405291216,1770948643714,-94743.77536422,0.00017992,2]
[405291217,1770948643724,-17984.75270212,0.00017992,2]
[405291218,1770948643736,-1254.41808677,0.00017992,2]
[405291219,1770948643756,-2535.48197541,0.00017992,2]
[405291220,1770948643768,-2333.32099426,0.00017992,2]
[405291221,1770948644810,-302.88716653,0.00016,2]
[405291222,1770948644819,-45.69655347,0.00016173,2]
[405291223,1770948644835,-441.54821717,0.00016173,2]
[405291224,1770948644844,-501.58203416,0.00016173,2]
[405291225,1770948644855,-176650.32501214,0.00017992,2]
[405291226,1770948644864,-8772.3272618,0.00017992,2]
[405291227,1770948644874,-105459.352657,0.00017992,2]
[405291228,1770948644883,-14753.2987491,0.00017992,2]
[405291229,1770948644893,-12923.8952171,0.00017992,2]
[405291230,1770948644902,-500.0,0.00017998,5]
[405291231,1770948644915,-500.0,0.00017998,5]
[405291232,1770948644925,-511.89126025,0.00017998,5]
[405291233,1770948644934,-151.0,0.00017998,5]
[405291234,1770948644944,-151.0,0.00017998,5]
[405291235,1770948644955,-151.0,0.00017998,5]
[405291236,1770948644964,-151.0,0.00017998,5]
[405291237,1770948644974,-200.0,0.00017998,5]
[405291238,1770948644985,-200.0,0.00017998,5]
[405291239,1770948644996,-151.0,0.00017998,5]
[405291240,1770948645005,-200.0,0.00017998,5]
[405291241,1770948645015,-200.0,0.00017998,5]
[405291242,1770948645024,-151.0,0.00017998,5]
[405291243,1770948645036,-200.0,0.00017998,5]
[405291244,1770948645046,-200.0,0.00017998,5]
[405291245,1770948645056,-151.0,0.00017998,5]
[405291246,1770948645066,-200.0,0.00017998,5]
[405291247,1770948645075,-200.0,0.00017998,5]
[405291248,1770948645085,-151.0,0.00017998,5]
[405291249,1770948645095,-200.0,0.00017998,5]
[405291250,1770948645104,-200.0,0.00017998,5]
[405291251,1770948645112,-151.0,0.00017998,5]
[405291252,1770948645121,-200.0,0.00017998,5]
[405291253,1770948645130,-200.0,0.00017998,5]
[405291254,1770948645138,-151.0,0.00017998,5]
[405291255,1770948645147,-204.32739701,0.00017998,5]
[405291256,1770948645157,-205.33524266,0.00017998,5]
[405291257,1770948645168,-151.0,0.00017998,5]
[405291258,1770948645178,-151.0,0.00017998,5]
[405291259,1770948645188,-500.0,0.00017998,5]
[405291260,1770948645197,-476.74248889,0.00017998,5]
[405291261,1770948645206,-500.0,0.00017998,5]
[405291262,1770948645216,-500.0,0.00017998,5]
[405291263,1770948645227,-500.0,0.00017998,5]
[405291264,1770948645237,-556.8619989,0.00017998,5]
[405291265,1770948645247,-1064.82419073,0.00017999,5]
[405291266,1770948645257,-423.44377653,0.00017999,2]
[405291267,1770948645267,-390.00537636,0.00017999,2]
[405291268,1770948645276,-1922614.74914986,0.00018,2]
[405291269,1770948645286,-200.0,0.00018,2]
[405291270,1770948645296,-200.0,0.00018,2]
[405291271,1770948645305,-151.0,0.00018,2]
[405291272,1770948645315,-151.0,0.00018,2]
[405291273,1770948645325,-200.0,0.00018,2]
[405291274,1770948645336,-200.0,0.00018,2]
[405291275,1770948645346,-500.0,0.00018027,2]
[405291276,1770948645355,-168.0,0.00018052,2]
[405291277,1770948645365,-168.0,0.00018069,2]
[405291278,1770948645375,-168.0,0.00018074,2]
[405291279,1770948645385,-500.0,0.00018082,2]
[405291280,1770948645395,-168.0,0.00018088,2]
[405291281,1770948645407,-168.0,0.000181,2]
[405291282,1770948645417,-168.0,0.00018121,2]
[405291283,1770948645427,-500.0,0.00018137,2]
[405291284,1770948645437,-168.0,0.00018143,2]
[405291285,1770948645447,-168.0,0.00018146,2]
[405291286,1770948645457,-168.0,0.00018149,2]
[405291287,1770948645467,-200.0,0.0001818,2]
[405291288,1770948645477,-200.0,0.0001818,2]
[405291289,1770948645487,-200.0,0.0001818,2]
[405291290,1770948645497,-168.0,0.00018183,2]
[405291291,1770948645507,-1071.0,0.00018188,2]
[405291292,1770948645516,-555.0,0.00018191,2]
[405291293,1770948645527,-500.0,0.00018192,2]
[405291294,1770948645536,-451.0,0.00018219,2]
[405291295,1770948645546,-1071.0,0.00018231,2]
[405291296,1770948645556,-500.0,0.00018246,2]
[405291297,1770948645566,-500.0,0.00018301,2]
[405291298,1770948645576,-200.0,0.00018319,2]
[405291299,1770948645585,-500.0,0.00018356,2]
[405291300,1770948645595,-200.0,0.00018362,2]
[405291301,1770948645604,-200.0,0.00018362,2]
[405291302,1770948645614,-200.0,0.00018362,2]
[405291303,1770948645624,-1504.12587357,0.00018364,2]
[405291305,1770948645634,-1504.4856347,0.00018364,2]
[405291307,1770948645643,-2500.0,0.00018364,2]
[405291309,1770948645655,-222.0,0.0001837,2]
[405291311,1770948645665,-174.97,0.00018403,2]
[405291313,1770948645675,-500.0,0.00018411,2]
[405291315,1770948645685,-241.4,0.00018414,2]
[405291317,1770948645694,-351.3,0.00018431,2]
[405291319,1770948645704,-500.0,0.00018466,2]
[405291321,1770948645714,-183.34840988,0.00018472,7]
[405291323,1770948645723,-174.97,0.00018478,2]
[405291325,1770948645733,-351.3,0.00018506,2]
[405291327,1770948645743,-500.0,0.0001852,2]
[405291329,1770948645752,-241.4,0.00018528,2]
[405291331,1770948645762,-200.0,0.00018545,2]
[405291333,1770948645771,-200.0,0.00018545,2]
[405291335,1770948645780,-174.96842784,0.00018554,2]
[405291337,1770948645791,-500.0,0.00018575,2]
[405291339,1770948645800,-351.3,0.00018581,2]
[405291341,1770948645809,-1296.88851,0.00018595,7]
[405291343,1770948645818,-3824.158428,0.00018595,7]
[405291345,1770948645828,-1071.0,0.00018622,2]
[405291347,1770948645838,-500.0,0.0001863,2]
[405291349,1770948645847,-241.4,0.00018641,2]
[405291351,1770948645856,-1199.66537221,0.00018647,2]
[405291353,1770948645866,-24793.0,0.00018657,2]
[405291355,1770948645876,-500.0,0.00018685,2]
[405291357,1770948645885,-500.0,0.0001874,2]
[405291359,1770948645895,-1242.0,0.00018754,2]
[405291361,1770948645905,-500.0,0.00018794,2]
[405291363,1770948645915,-285.29097381,0.00018849,2]
[405291365,1770948645928,-688.2,0.00018887,2]
[405291367,1770948645937,-801.45328236,0.00018904,2]
[405291369,1770948645947,-266.54635509,0.00018912,2]
[405291371,1770948645957,-1242.0,0.00018915,2]
[405291373,1770948645966,-264.00565136,0.00019,2]
[405291375,1770948645975,-4600.92113012,0.00019,2]
[405291377,1770948645985,-350.0,0.00019,2]
[405291379,1770948645996,-503.92174178,0.00019,5]
[405291381,1770948646008,-350.0,0.00019109,2]
[405291383,1770948646023,-168.0,0.00019137,2]
[405291385,1770948646032,-155.0,0.00019176,2]
[405291387,1770948646041,-500.0,0.00019178,2]
[405291389,1770948646050,-150.0,0.00019178,2]
[405291391,1770948646059,-150.0,0.00019178,2]
[405291393,1770948646069,-500.0,0.00019233,2]
[405291395,1770948646078,-500.33745855,0.00019288,2]
[405291397,1770948646088,-1242.0,0.00019406,2]
[405291399,1770948646099,-350.0,0.0001963,2]
[405291401,1770948646118,-350.0,0.0001963,2]
[405291403,1770948646128,-165.94,0.00019658,2]
[405291405,1770948646137,-500.0,0.00019726,2]
[405291407,1770948646147,-250.0,0.00019726,2]
[405291409,1770948646157,-250.0,0.00019726,2]
[405291411,1770948646167,-500.0,0.00019781,2]
[405291413,1770948646176,-688.2,0.00019786,2]
[405291415,1770948646186,-500.0,0.00019836,2]
[405291417,1770948646196,-500.0,0.0001989,2]
[405291419,1770948646205,-4932.95335,0.000199,3]
[405291422,1770948646215,-160.0,0.000199,3]
[405291423,1770948646224,-632.80663538,0.00019945,2]
[405291425,1770948646234,-350.0,0.00019972,2]
[405291427,1770948646243,-500.0,0.00019999,2]
[405291430,1770948646253,-274.3836169,0.00019999,2]
[405291432,1770948646262,-500.0,0.00019999,2]
[405291434,1770948646273,-500.0,0.00019999,2]
[405291436,1770948646282,-500.0,0.00019999,2]
[405291438,1770948646291,-365.55009687,0.00019999,2]
[405291440,1770948646300,-500.0,0.00019999,2]
[405291441,1770948646310,-500.0,0.00019999,2]
[405291443,1770948646319,-500.0,0.00019999,2]
[405291445,1770948646328,-500.0,0.00019999,2]
[405291447,1770948646337,-500.0,0.00019999,2]
[405291449,1770948646347,-500.0,0.00019999,2]
[405291451,1770948646358,-500.0,0.00019999,2]
[405291453,1770948646367,-500.0,0.00019999,2]
[405291455,1770948646377,-500.0,0.00019999,2]
[405291457,1770948646387,-500.0,0.00019999,2]
[405291459,1770948646396,-500.0,0.00019999,2]
[405291461,1770948646406,-151.51932098,0.00019999,2]
[405291463,1770948646416,-500.0,0.00019999,2]
[405291465,1770948646426,-500.0,0.00019999,2]
[405291467,1770948646435,-500.0,0.00019999,2]
[405291469,1770948646445,-500.0,0.00019999,2]
[405291471,1770948646454,-500.0,0.00019999,2]
[405291473,1770948646463,-500.0,0.00019999,2]
[405291475,1770948646472,-500.0,0.00019999,2]
[405291477,1770948646482,-204.0,0.0002,10]
[405291478,1770948646491,-300.0,0.0002,2]
[405291480,1770948646501,-1103.73981568,0.0002,2]
[405291483,1770948646511,-121626.1925106,0.00020032,2]
[405291484,1770948646520,-200758.2987707,0.00020032,2]
[405291486,1770948646529,-105459.352657,0.00020032,2]
[405291489,1770948646539,-12923.8952171,0.00020032,2]
[405291491,1770948646549,-350.0,0.00020047,2]
[405291492,1770948646558,-8772.3272618,0.00020072,2]
[405291494,1770948646567,-14753.2987491,0.00020089,2]
[405291497,1770948646577,-2000.0,0.000201,2]
[405291499,1770948646587,-335.56301619,0.00020274,2]
[405291500,1770948646596,-350.0,0.00020274,2]
[405291501,1770948646606,-350.0,0.00020476,2]
[405291502,1770948646616,-5250.0,0.00020523,2]
[405291503,1770948646626,-350.0,0.00020544,2]
[405291504,1770948646635,-21571.07,0.00020548,2]
[405291505,1770948646645,-500.0,0.00020685,2]
[405291506,1770948646654,-688.2,0.00020686,2]
[405291507,1770948646701,-450.0,0.00020822,2]
[405291508,1770948646711,-5366.26416238,0.00021,2]
[405291509,1770948646720,-400.0,0.00021,2]
[405291510,1770948646729,-350.0,0.00021033,2]
[405291511,1770948646738,-12544.77,0.00021068,2]
[405291513,1770948646747,-350.0,0.00021282,2]
[405291515,1770948646757,-6392.98,0.0002137,2]
[405291517,1770948646770,-550.0,0.0002137,2]
[405291519,1770948646779,-269.34650097,0.00021576,2]
[405291521,1770948646789,-688.2,0.00021585,2]
[405291523,1770948646798,-350.0,0.00021777,2]
[405291525,1770948646808,-10000.0,0.00021798,2]
[405291527,1770948646817,-1064.82419073,0.00021806,5]
[405291529,1770948646826,-204.72,0.00021871,2]
[405291531,1770948646836,-1771.62509047,0.00021909,5]
[405291532,1770948646845,-2000.0,0.00021917,2]
[405291533,1770948646854,-5000.0,0.00021918,2]
[405291534,1770948646863,-552.06741177,0.00021918,2]
[405291535,1770948646873,-500.0,0.00021918,2]
[405291536,1770948646882,-500.0,0.00021973,2]
[405291538,1770948646891,-343.0082212,0.00022,2]
[405291540,1770948646900,-151.51,0.00022,14]
[405291542,1770948646910,-41943.49,0.00022,2]
[405291544,1770948646921,-500.0,0.00022028,2]
[405291546,1770948646930,-121626.1925106,0.00022072,2]
[405291547,1770948646940,-200758.2987707,0.00022072,2]
[405291548,1770948646949,-105459.352657,0.00022072,2]
[405291549,1770948646959,-12923.8952171,0.00022072,2]
[405291550,1770948646968,-500.0,0.00022082,2]
[405291552,1770948646977,-500.0,0.00022137,2]
[405291553,1770948646986,-8772.3272618,0.00022153,2]
[405291554,1770948646995,-14753.2987491,0.00022186,2]
[405291555,1770948647005,-500.0,0.00022192,2]
[405291556,1770948647015,-480.01587484,0.00022197,120]
[405291557,1770948647024,-337.84879333,0.00022197,120]
[405291558,1770948647035,-500.0,0.00022247,2]
[405291559,1770948647045,-500.0,0.00022302,2]
[405291560,1770948647054,-500.0,0.00022329,2]
[405291561,1770948647065,-390.83009148,0.00022356,2]
[405291562,1770948647074,-9512.23,0.00022466,2]
[405291563,1770948647083,-688.2,0.00022484,2]
[405291564,1770948647092,-165.94,0.00022603,2]
[405291565,1770948647102,-198.9767698,0.00022712,2]
[405291566,1770948647111,-1006.72,0.00023,7]
[405291567,1770948647120,-450.0,0.00023,2]
[405291568,1770948647140,-160.0,0.00023,2]
[405291569,1770948647155,-688.2,0.00023384,2]
[405291570,1770948647175,-6707.59337211,0.00023926,3]
[405291571,1770948647190,-10008.82399767,0.00024,2]
[405291572,1770948647199,-323.22905253,0.00024,3]
[405291573,1770948647208,-41943.49,0.00024,2]
[405291574,1770948647219,-121626.1925106,0.00024112,2]
[405291575,1770948647229,-200758.2987707,0.00024112,2]
[405291576,1770948647239,-105459.352657,0.00024112,2]
[405291577,1770948647249,-12923.8952171,0.00024112,2]
[405291578,1770948647258,-8772.3272618,0.00024233,2]
[405291579,1770948647268,-14753.2987491,0.00024282,2]
[405291580,1770948647278,-688.2,0.00024283,2]
[405291581,1770948647287,-454.53,0.000245,14]
[405291582,1770948647296,-155.0,0.00024655,2]
[405291583,1770948647306,-2000.0,0.00024657,12]
[405291584,1770948647316,-1000.0,0.00024658,2]
[405291585,1770948647326,-1253.96,0.00024658,2]
[405291586,1770948647337,-150.0,0.00024658,2]
[405291587,1770948647347,-331.10310038,0.00024818,3]
[405291588,1770948647357,-324.0,0.00025,15]
[405291589,1770948647367,-500.0,0.00025,2]
[405291590,1770948647377,-7625.54507805,0.00025248,3]
[405291591,1770948647387,-165.94,0.00025548,2]
[405291592,1770948647397,-338.97714822,0.00025636,3]
[405291593,1770948647406,-41943.49,0.000257,2]
[405291594,1770948647416,-150.0,0.0002589,2]
[405291595,1770948647426,-1000.0,0.00026215,7]
[405291596,1770948647436,-928.78213873,0.000263,2]
[405291597,1770948647445,-472.74529557,0.00026415,2]
[405291598,1770948647456,-346.85119606,0.00026455,3]
[405291599,1770948647466,-1087.05013443,0.00026515,2]
[405291600,1770948647476,-1874.0,0.00026596,2]
[405291601,1770948647486,-1771.62509047,0.00026799,10]
[405291602,1770948647495,-160.12,0.00027,12]
[405291603,1770948647505,-550.0,0.00027,2]
[405291604,1770948647515,-3691.71,0.00027123,2]
[405291605,1770948647525,-150.0,0.00027185,2]
[405291606,1770948647534,-354.7252439,0.00027273,3]
[405291607,1770948647544,-150.0,0.00027369,2]
[405291608,1770948647554,-315.7668639,0.0002737,2]
[405291609,1770948647563,-2006.79775427,0.00027397,22]
[405291610,1770948647573,-160.48734455,0.00027397,2]
[405291611,1770948647582,-518.48802897,0.00027397,120]
[405291612,1770948647591,-500.0,0.00027397,20]
[405291613,1770948647601,-300.0,0.00027397,2]
[405291614,1770948647611,-101380.80230188,0.00027397,120]
[405291615,1770948647622,-1253.96,0.00027397,2]
[405291616,1770948647631,-151.0,0.00027397,2]
[405291617,1770948647640,-151.0,0.00027397,2]
[405291618,1770948647650,-151.0,0.00027397,2]
[405291619,1770948647659,-151.0,0.00027397,2]
[405291620,1770948647669,-151.0,0.00027397,2]
[405291621,1770948647678,-236.771232,0.00027397,2]
[405291622,1770948647688,-335.033903,0.00027397,2]
[405291623,1770948647698,-335.033903,0.00027397,2]
[405291624,1770948647707,-335.033903,0.00027397,2]
[405291625,1770948647717,-335.033903,0.00027397,2]
[405291626,1770948647727,-335.033903,0.00027397,2]
[405291627,1770948647737,-335.033903,0.00027397,2]
[405291628,1770948647747,-335.033903,0.00027397,2]
[405291629,1770948647756,-335.033903,0.00027397,2]
[405291630,1770948647766,-335.033903,0.00027397,2]
[405291631,1770948647776,-335.033903,0.00027397,2]
[405291632,1770948647786,-335.033903,0.00027397,2]
[405291633,1770948647796,-335.033903,0.00027397,2]
[405291634,1770948647806,-300.0,0.00027397,5]
[405291635,1770948647816,-150.0,0.00027397,5]
[405291636,1770948647826,-211.64486085,0.00027397,4]
[405291637,1770948647835,-600.0,0.00027945,5]
[405291638,1770948647845,-250.0,0.00027945,5]
[405291639,1770948647855,-41943.49,0.00028,2]
[405291640,1770948647865,-362.59929175,0.00028091,3]
[405291641,1770948647876,-165.94,0.00028493,2]
[405291642,1770948647886,-1011.01782723,0.00028493,5]
[405291643,1770948647896,-353.14332951,0.00028493,5]
[405291644,1770948647906,-150.0,0.00028544,2]
[405291645,1770948647920,-376.77257786,0.00028909,3]
[405291646,1770948647930,-2641.8270067,0.00029,120]
[405291647,1770948647942,-600.0,0.00029,2]
[405291648,1770948647951,-306.22279072,0.00029025,2]
[405291649,1770948647962,-397.24510225,0.00029727,3]
[405291650,1770948647972,-150.0,0.00029971,2]
[405291651,1770948647982,-1006.72,0.0003,7]
[405291652,1770948647994,-7510.47703275,0.0003,2]
[405291653,1770948648003,-152.64,0.0003,2]
[405291654,1770948648012,-6593.0,0.00030018,2]
[405291655,1770948648022,-2450.0,0.00030018,2]
[405291656,1770948648031,-659.837395,0.0003013,2]
[405291657,1770948648044,-1253.96,0.00030137,2]
[405291658,1770948648062,-502.0,0.00030384,2]
[405291659,1770948648073,-378.78,0.000305,14]
[405291660,1770948648083,-417.71762665,0.00030545,3]
[405291661,1770948648097,-404.65562713,0.00030921,6]
[405291662,1770948648119,-702.0,0.00030973,30]
[405291663,1770948648130,-589.5,0.00030973,30]
[405291664,1770948648139,-650.0,0.00031,2]
[405291665,1770948648148,-300.130851,0.00031041,50]
[405291666,1770948648157,-438.19015104,0.00031364,3]
[405291667,1770948648167,-150.0,0.0003147,2]
[405291668,1770948648176,-160.0,0.00032,3]
[405291669,1770948648185,-3353.43737997,0.00032075,2]
[405291670,1770948648195,-458.66267543,0.00032182,3]
[405291671,1770948648204,-152.0,0.00032581,3]
[405291672,1770948648213,-302.0,0.000327,2]
[405291673,1770948648223,-308.0,0.000327,2]
[405291674,1770948648232,-516.95013076,0.00032876,30]
[405291675,1770948648242,-345.39,0.00032877,2]
[405291676,1770948648252,-1113.29,0.00032877,15]
[405291677,1770948648261,-1253.96,0.00032877,2]
[405291678,1770948648271,-500.0,0.00032877,2]
[405291679,1770948648281,-500.0,0.00032877,2]
[405291680,1770948648291,-500.0,0.00032877,2]
[405291681,1770948648300,-500.0,0.00032877,2]
[405291682,1770948648309,-500.0,0.00032877,2]
[405291683,1770948648319,-365.85048482,0.00032877,2]
[405291684,1770948648329,-300.0,0.00032877,5]
[405291685,1770948648337,-936.69,0.00033,2]
[405291686,1770948648346,-705.93,0.00033,14]
[405291687,1770948648356,-1570.59,0.00033,14]
[405291688,1770948648365,-536.93383721,0.00033,120]
[405291689,1770948648374,-479.13519982,0.00033,3]
[405291690,1770948648383,-700.0,0.00033,2]
[405291691,1770948648392,-542.595972,0.00033,8]
[405291692,1770948648402,-154.0,0.00033,14]
[405291693,1770948648411,-6593.0,0.00033018,2]
[405291694,1770948648421,-2450.0,0.00033018,2]
[405291695,1770948648431,-150.0,0.00033043,2]
[405291696,1770948648440,-154.0,0.00033151,30]
[405291697,1770948648450,-180.11038915,0.00033253,10]
[405291698,1770948648459,-150.0,0.0003368,2]
[405291699,1770948648472,-150.0,0.00033683,2]
[405291700,1770948648482,-265.155,0.00033683,2]
[405291701,1770948648492,-198.026,0.00033683,2]
[405291702,1770948648501,-231.189,0.00033683,2]
[405291703,1770948648510,-159.709,0.00033683,2]
[405291704,1770948648521,-250.0,0.00033683,2]
[405291705,1770948648530,-192.031,0.00033683,2]
[405291706,1770948648539,-213.191,0.00033683,2]
[405291707,1770948648548,-250.0,0.00033683,2]
[405291708,1770948648558,-174.0,0.00033683,2]
[405291709,1770948648568,-233.572,0.00033683,2]
[405291710,1770948648577,-3488.0,0.00033683,2]
[405291711,1770948648586,-623.675,0.00033683,2]
[405291712,1770948648596,-1288.0,0.00033683,2]
[405291713,1770948648609,-162.602,0.00033683,2]
[405291714,1770948648618,-1350.099,0.00033683,2]
[405291715,1770948648627,-150.223,0.00033683,2]
[405291716,1770948648637,-1275.397,0.00033683,2]
[405291717,1770948648646,-1208.0,0.00033683,2]
[405291718,1770948648655,-919.993,0.00033683,2]
[405291719,1770948648669,-9512.23,0.00033699,2]
[405291720,1770948648683,-601.10661111,0.00033699,5]
[405291721,1770948648692,-853.41270525,0.00033818,3]
[405291722,1770948648701,-862.148,0.00034041,37]
[405291723,1770948648711,-41943.49,0.000341,2]
[405291724,1770948648720,-1000.0,0.00034234,2]
[405291725,1770948648730,-1000.0,0.00034234,2]
[405291726,1770948648740,-1000.0,0.00034234,2]
[405291727,1770948648750,-1000.0,0.00034234,2]
[405291728,1770948648759,-1000.0,0.00034234,2]
[405291729,1770948648770,-154.0,0.00034521,30]
[405291730,1770948648779,-1227.69021069,0.00034636,3]
[405291731,1770948648788,-150.0,0.00034696,2]
[405291732,1770948648798,-1500.0,0.00034795,2]
[405291733,1770948648807,-152.0,0.00034854,4]
[405291734,1770948648816,-623.31387775,0.00035,90]
[405291735,1770948648826,-750.0,0.00035,2]
[405291736,1770948648835,-150.0,0.00035,2]
[405291737,1770948648845,-1601.96771612,0.00035455,3]
[405291738,1770948648854,-379.76,0.000355,2]
[405291739,1770948648864,-175.46698547,0.00035589,120]
[405291740,1770948648876,-315.7668639,0.00035589,7]
[405291741,1770948648885,-2332.10512766,0.0003561,120]
[405291742,1770948648895,-155.0,0.00035612,2]
[405291743,1770948648905,-1253.96,0.00035616,2]
[405291744,1770948648915,-1000.0,0.000359,2]
[405291745,1770948648927,-151.0,0.000359,31]
[405291746,1770948648937,-335.033903,0.000359,31]
[405291747,1770948648947,-335.033903,0.000359,31]
[405291748,1770948648957,-335.033903,0.000359,31]
[405291749,1770948648967,-335.033903,0.000359,31]
[405291750,1770948648976,-518.4,0.00036,30]
[405291751,1770948648987,-6593.0,0.00036018,2]
[405291752,1770948648999,-2450.0,0.00036018,2]
[405291753,1770948649008,-158.0,0.00036247,30]
[405291754,1770948649018,-1976.24522156,0.00036273,3]
[405291755,1770948649027,-150.0,0.0003643,2]
[405291756,1770948649036,-1570.59,0.000365,14]
[405291757,1770948649046,-1113.29,0.0003653,15]
[405291758,1770948649055,-150.0,0.0003668,2]
[405291759,1770948649068,-150.0,0.00036683,2]
[405291760,1770948649078,-150.0,0.00036683,2]
[405291761,1770948649087,-150.0,0.00036683,2]
[405291762,1770948649096,-150.0,0.00036683,2]
[405291763,1770948649105,-150.0,0.00036683,2]
[405291764,1770948649115,-150.0,0.00036683,2]
[405291765,1770948649124,-150.0,0.00036683,2]
[405291766,1770948649134,-150.0,0.00036683,2]
[405291767,1770948649143,-3488.0,0.00036683,2]
[405291768,1770948649153,-617.0,0.00036683,2]
[405291769,1770948649162,-1288.0,0.00036683,2]
[405291770,1770948649172,-1337.0,0.00036683,2]
[405291771,1770948649182,-150.0,0.00036683,2]
[405291772,1770948649192,-1274.0,0.00036683,2]
[405291773,1770948649202,-1208.0,0.00036683,2]
[405291774,1770948649211,-918.0,0.00036683,2]
[405291775,1770948649221,-518.4,0.0003672,30]
[405291776,1770948649230,-150.76,0.00036963,10]
[405291777,1770948649240,-158.441673,0.00036986,31]
[405291778,1770948649250,-158.441673,0.00036986,31]
[405291779,1770948649259,-158.441673,0.00036986,31]
[405291780,1770948649273,-158.441673,0.00036986,31]
[405291781,1770948649282,-158.441673,0.00036986,31]
[405291782,1770948649291,-158.441673,0.00036986,31]
[405291783,1770948649302,-158.441673,0.00036986,31]
[405291784,1770948649312,-158.441673,0.00036986,31]
[405291785,1770948649322,-151.0,0.00036986,31]
[405291786,1770948649333,-151.0,0.00036986,31]
[405291787,1770948649343,-204.66933,0.00036986,31]
[405291788,1770948649355,-151.0,0.00036986,31]
[405291789,1770948649365,-151.0,0.00036986,31]
[405291790,1770948649375,-181.288909,0.00036986,31]
[405291791,1770948649385,-151.0,0.00036986,31]
[405291792,1770948649395,-151.0,0.00036986,31]
[405291793,1770948649406,-151.0,0.00036986,31]
[405291794,1770948649415,-151.0,0.00036986,31]
[405291795,1770948649426,-151.0,0.00036986,31]
[405291796,1770948649436,-151.162535,0.00036986,31]
[405291797,1770948649447,-151.0,0.00036986,31]
[405291798,1770948649461,-151.0,0.00036986,31]